bitfinex/quotes_BTCUSD_20241215
["timestamp","ask_amount","ask_price","bid_price","bid_amount"]
[1734300743343,0.1267724,102720.0,102710.0,0.36053703]
[1734300743556,0.1267724,102720.0,102710.0,0.44783009]
[1734300745210,0.1267724,102720.0,102710.0,0.36053703]
[1734300745390,0.1267724,102720.0,102710.0,0.36519472]
[1734300746044,0.1267724,102720.0,102710.0,0.4237847]
[1734300747100,0.1267724,102720.0,102710.0,0.51107776]
[1734300747710,0.1267724,102720.0,102710.0,0.64201735]
[1734300747915,0.1267724,102720.0,102710.0,0.96413926]
[1734300748275,0.0001724,102720.0,102710.0,1.01807155]
[1734300748553,0.0001724,102720.0,102710.0,1.19262141]
[1734300748795,0.0001724,102720.0,102710.0,1.35221876]
[1734300749406,0.0001724,102720.0,102710.0,1.13403143]
[1734300750963,0.0001724,102720.0,102710.0,1.32353381]
[1734300751982,0.0001724,102720.0,102710.0,1.32207361]
[1734300753801,0.0001724,102720.0,102710.0,1.30625958]
[1734300754002,0.0001724,102720.0,102710.0,1.32207117]
[1734300754207,0.0001724,102720.0,102710.0,1.3220712]
[1734300756172,0.0001724,102720.0,102710.0,0.47771458]
[1734300756526,0.0001724,102720.0,102710.0,1.0001476]
[1734300756753,0.0001724,102720.0,102710.0,1.32156636]
[1734300756989,0.0001724,102720.0,102710.0,1.19095811]
[1734300757161,0.0001724,102720.0,102710.0,1.19095722]
[1734300757843,0.0001724,102720.0,102710.0,1.19087622]
[1734300758204,0.0001724,102720.0,102710.0,1.19088465]
[1734300760145,0.0001724,102720.0,102710.0,1.00100215]
[1734300760360,0.0001724,102720.0,102710.0,1.19091489]
[1734300761540,0.0001724,102720.0,102710.0,1.36296892]
[1734300761748,0.0001724,102740.0,102730.0,0.15]
[1734300761954,0.0001724,102740.0,102730.0,0.67458766]
[1734300762155,0.0001724,102740.0,102730.0,0.99980512]
[1734300762355,0.0001724,102740.0,102730.0,1.49168245]
[1734300762764,0.0001724,102740.0,102730.0,1.39973917]
[1734300762991,0.00022729,102740.0,102730.0,1.39973917]
[1734300763191,0.00022729,102740.0,102730.0,1.57362415]
[1734300763467,0.00022729,102740.0,102730.0,1.44973556]
[1734300763826,0.00022729,102740.0,102730.0,1.75915207]
[1734300764031,0.00022729,102740.0,102730.0,1.86774205]
[1734300764337,0.0001724,102770.0,102760.0,0.194628]
[1734300764655,0.0001724,102770.0,102760.0,0.4472913]
[1734300764783,0.0001724,102770.0,102760.0,0.56446846]
[1734300764985,0.0001724,102770.0,102760.0,0.57054697]
[1734300765188,0.0001724,102770.0,102760.0,0.49341594]
[1734300765375,0.0001724,102770.0,102760.0,0.4980324]
[1734300766587,0.0001724,102770.0,102760.0,0.46180796]
[1734300766783,0.0001724,102770.0,102760.0,0.48222532]
[1734300767186,0.0001724,102770.0,102760.0,0.56908191]
[1734300767390,0.0001724,102770.0,102760.0,0.48222532]
[1734300767616,0.0001724,102770.0,102760.0,0.50164713]
[1734300768653,0.0001724,102770.0,102760.0,0.51352756]
[1734300769922,0.0001724,102770.0,102760.0,0.4931102]
[1734300770105,0.0001724,102770.0,102760.0,0.51352004]
[1734300770513,0.0001724,102770.0,102760.0,2.30044905]
[1734300770716,0.0001724,102770.0,102760.0,2.42094263]
[1734300770918,0.0001724,102770.0,102760.0,2.50763224]
[1734300771119,0.0001724,102770.0,102760.0,2.95736379]
[1734300771296,0.0001724,102770.0,102760.0,2.50763224]
[1734300772317,0.0001724,102770.0,102760.0,2.95707261]
[1734300772726,0.0001724,102770.0,102760.0,3.18045183]
[1734300773156,0.0001724,102770.0,102760.0,3.02530404]
[1734300773362,0.0001724,102770.0,102760.0,3.20823876]
[1734300773575,0.0001724,102780.0,102770.0,0.223]
[1734300773782,0.00033673,102780.0,102770.0,2.50228999]
[1734300774001,0.00033673,102780.0,102770.0,2.7126993]
[1734300775815,0.00033673,102780.0,102770.0,1.9607443]
[1734300776032,0.00033673,102780.0,102770.0,0.9505913]
[1734300776223,0.00033673,102780.0,102770.0,1.0005913]
[1734300777449,0.04893673,102780.0,102770.0,1.0005913]
[1734300777887,0.00033673,102780.0,102770.0,1.0005913]
[1734300778094,0.00033673,102780.0,102770.0,0.94617273]
[1734300780300,0.00033673,102780.0,102770.0,0.94617439]
[1734300782194,0.00033673,102780.0,102770.0,0.92577563]
[1734300782394,0.00033673,102780.0,102770.0,0.94617532]
[1734300785147,0.00033673,102780.0,102770.0,0.94157677]
[1734300787092,0.00033673,102780.0,102770.0,0.59062877]
[1734300787246,0.00033673,102780.0,102770.0,2.19964877]
[1734300787447,0.00033673,102780.0,102770.0,2.24964877]
[1734300787654,0.00033673,102780.0,102770.0,2.30823875]
[1734300787858,0.00033673,102780.0,102770.0,2.33551507]
[1734300788065,0.0487724,102790.0,102780.0,0.15]
[1734300788265,0.0487724,102790.0,102780.0,0.44062511]
[1734300788266,0.04932005,102790.0,102780.0,0.44062511]
[1734300788609,0.04932005,102790.0,102780.0,0.63521511]
[1734300788745,0.04932005,102790.0,102780.0,0.61941397]
[1734300788955,0.04932005,102790.0,102780.0,0.63521383]
[1734300789160,0.04932005,102790.0,102780.0,0.57662385]
[1734300789462,0.00072005,102790.0,102780.0,1.53151683]
[1734300789667,0.00072005,102790.0,102780.0,1.58151683]
[1734300791108,0.04582005,102790.0,102780.0,0.45944389]
[1734300791273,0.04582005,102790.0,102780.0,0.57662385]
[1734300792232,0.04582005,102790.0,102780.0,0.56082399]
[1734300792408,0.04582005,102790.0,102780.0,0.57662403]
[1734300794090,0.04582005,102790.0,102780.0,0.58873727]
[1734300795877,0.04582005,102790.0,102780.0,0.60807833]
[1734300798631,0.12492005,102790.0,102780.0,0.60807833]
[1734300799878,0.12492005,102790.0,102780.0,0.3797311]
[1734300800288,0.12492005,102790.0,102780.0,0.43832108]
[1734300801150,0.31949105,102790.0,102780.0,0.01580004]
[1734300801362,0.41854508,102790.0,102780.0,0.00607694]
[1734300801978,0.61733208,102790.0,102780.0,0.00607867]
[1734300802761,0.61733208,102790.0,102780.0,0.00616487]
[1734300804440,0.61733208,102790.0,102780.0,8.62e-05]
[1734300806583,0.68772137,102790.0,102780.0,8.62e-05]
[1734300806802,0.68772137,102790.0,102770.0,8.62e-05]
[1734300806803,0.37299,102780.0,102770.0,8.62e-05]
[1734300807010,0.53063401,102780.0,102770.0,8.62e-05]
[1734300807445,0.47204403,102780.0,102770.0,8.62e-05]
[1734300807678,0.323009,102770.0,102760.0,8.62e-05]
[1734300807912,0.42206303,102770.0,102760.0,8.62e-05]
[1734300813857,0.51366303,102770.0,102760.0,8.62e-05]
[1734300814060,0.52547834,102770.0,102760.0,8.62e-05]
[1734300814236,0.05,102760.0,102720.0,0.08686499]
[1734300814441,0.241985,102730.0,102710.0,0.47866505]
[1734300814788,0.0473,102730.0,102710.0,0.47865505]
[1734300814991,0.0473,102730.0,102720.0,0.194704]
[1734300815761,0.0473,102730.0,102720.0,0.34486833]
[1734300816660,0.0473,102730.0,102720.0,0.36397906]
[1734300818395,0.1284,102740.0,102730.0,0.15]
[1734300818599,0.09905403,102750.0,102730.0,0.43390105]
[1734300818600,0.0811,102750.0,102730.0,0.43390105]
[1734300818803,0.1284,102760.0,102750.0,0.194647]
[1734300819007,0.22745403,102760.0,102750.0,0.194647]
[1734300819355,0.1284,102760.0,102750.0,0.194647]
[1734300819575,0.1284,102780.0,102760.0,0.389227]
[1734300819792,0.22745403,102780.0,102770.0,0.194608]
[1734300820362,0.1284,102780.0,102770.0,0.194608]
[1734300820808,0.1284,102780.0,102770.0,0.19477233]
[1734300822370,0.1284,102780.0,102760.0,0.28384605]
[1734300822574,0.12856424,102780.0,102760.0,0.28384605]
[1734300823227,0.12856424,102780.0,102770.0,0.194608]
[1734300824154,0.42220827,102780.0,102760.0,0.583844]
[1734300824470,0.22761827,102780.0,102760.0,0.583843]
[1734300824909,0.42220827,102780.0,102760.0,0.389226]
[1734300825296,0.61680827,102780.0,102760.0,0.15]
[1734300825502,0.61680827,102780.0,102760.0,0.344627]
[1734300827055,0.61680827,102780.0,102760.0,0.3447132]
[1734300827298,0.61698067,102780.0,102760.0,0.3447132]
[1734300828303,0.61698067,102780.0,102770.0,0.0190516]
[1734300829617,0.277009,102770.0,102760.0,8.62e-05]
[1734300829817,0.37606303,102770.0,102760.0,8.62e-05]
[1734300832263,0.42476303,102770.0,102760.0,8.62e-05]
[1734300833438,0.23015403,102770.0,102760.0,8.62e-05]
[1734300833642,0.42476303,102770.0,102760.0,8.62e-05]
[1734300837283,0.23015403,102770.0,102760.0,0.1947142]
[1734300837913,0.1311,102770.0,102760.0,0.3447142]
[1734300838145,0.08273664,102780.0,102770.0,0.194609]
[1734300839444,0.00033664,102780.0,102770.0,0.194609]
[1734300839663,0.00033664,102780.0,102770.0,0.344609]
[1734300841622,0.00033664,102780.0,102770.0,0.51722083]
[1734300841829,0.00033664,102780.0,102770.0,0.51114205]
[1734300842699,0.00033664,102780.0,102770.0,0.6041854]
[1734300842909,0.00033664,102780.0,102770.0,0.60417705]
[1734300844009,0.00033664,102780.0,102770.0,0.60418952]
[1734300844197,0.00033664,102780.0,102770.0,0.60418958]
[1734300846407,0.00033664,102780.0,102770.0,0.61563023]
[1734300847647,0.00033664,102780.0,102770.0,0.63525178]
[1734300849938,0.00033664,102780.0,102770.0,0.63525179]
[1734300850781,0.00033664,102780.0,102770.0,0.54828188]
[1734300851196,0.00033664,102780.0,102770.0,0.63525179]
[1734300851608,0.00033664,102780.0,102770.0,0.54828188]
[1734300851812,0.00033664,102780.0,102770.0,0.64733591]
[1734300852016,0.00033664,102780.0,102770.0,1.35206182]
[1734300852221,0.00033664,102780.0,102770.0,1.40156182]
[1734300852637,0.00033664,102780.0,102770.0,1.31459191]
[1734300852844,0.00033664,102780.0,102770.0,1.40150445]
[1734300854524,0.00033664,102780.0,102770.0,1.30200445]
[1734300854732,0.00033664,102780.0,102770.0,0.75484588]
[1734300855350,0.00033664,102780.0,102770.0,0.84175842]
[1734300855754,0.00033664,102780.0,102770.0,0.75484588]
[1734300856368,0.00033664,102780.0,102770.0,0.84175842]
[1734300856575,0.00033664,102780.0,102770.0,0.75484588]
[1734300857418,0.00033664,102780.0,102770.0,0.94313296]
[1734300857637,0.00033664,102780.0,102770.0,1.74287667]
[1734300859355,0.00033664,102780.0,102770.0,1.74287607]
[1734300859917,0.00033664,102780.0,102770.0,1.89134282]
[1734300860170,6.4e-07,102780.0,102770.0,1.87250594]
[1734300860447,0.0001724,102790.0,102780.0,4.114635]
[1734300860700,0.00072005,102790.0,102780.0,5.12645785]
[1734300860960,5e-08,102790.0,102780.0,5.05439095]
[1734300861263,5e-08,102790.0,102780.0,1.38256321]
[1734300861567,5e-08,102790.0,102780.0,1.42649193]
[1734300861813,5e-08,102790.0,102780.0,1.38251076]
[1734300862303,5e-08,102790.0,102780.0,1.3919292]
[1734300862551,5e-08,102790.0,102780.0,1.49532881]
[1734300863294,0.1223722,102830.0,102780.0,1.49532881]
[1734300863295,0.244469,102850.0,102820.0,0.194502]
[1734300863523,0.53804479,102850.0,102830.0,0.194495]
[1734300863781,0.53804479,102850.0,102830.0,0.20057203]
[1734300864046,0.73251779,102850.0,102830.0,0.00607703]
[1734300864249,0.73251779,102850.0,102820.0,0.67881708]
[1734300864475,0.73251779,102850.0,102820.0,0.58958303]
[1734300864923,0.194479,102840.0,102820.0,0.39509203]
[1734300865195,0.48801203,102840.0,102820.0,0.20057803]
[1734300866153,0.1218,102830.0,102820.0,0.20057649]
[1734300868163,0.1218,102830.0,102820.0,0.28980954]
[1734300870068,0.1218,102830.0,102820.0,0.00607549]
[1734300870295,0.1218,102830.0,102820.0,0.20058949]
[1734300870503,0.1218,102830.0,102820.0,0.21981919]
[1734300872381,0.1218,102830.0,102820.0,0.21981921]
[1734300873270,0.1218862,102830.0,102820.0,0.21981921]
[1734300873932,0.1218862,102830.0,102820.0,0.30905226]
[1734300874152,8.62e-05,102830.0,102820.0,0.45905226]
[1734300875416,8.62e-05,102830.0,102820.0,0.95905226]
[1734300877154,8.62e-05,102830.0,102820.0,1.23202629]
[1734300877338,8.62e-05,102830.0,102820.0,1.35682629]
[1734300877808,8.62e-05,102830.0,102820.0,1.43369737]
[1734300878041,5.476e-05,102850.0,102840.0,0.194476]
[1734300878251,5.476e-05,102850.0,102840.0,0.51605678]
[1734300878435,5.476e-05,102850.0,102840.0,0.51508456]
[1734300878886,5.476e-05,102850.0,102840.0,0.51508311]
[1734300880141,5.476e-05,102850.0,102840.0,0.43978311]
[1734300883964,5.476e-05,102850.0,102840.0,0.450881]
[1734300884679,5.476e-05,102850.0,102840.0,1.75936456]
[1734300884894,5.476e-05,102850.0,102840.0,1.91346456]
[1734300885133,5.476e-05,102850.0,102840.0,1.9168078]
[1734300885330,5.476e-05,102850.0,102840.0,1.91578915]
[1734300885331,0.00014086,102850.0,102840.0,1.91578915]
[1734300885805,0.00014086,102850.0,102840.0,1.90971597]
[1734300886027,0.00014086,102850.0,102840.0,1.91578913]
[1734300886468,0.00014086,102850.0,102840.0,1.9414044]
[1734300886680,0.00014086,102850.0,102840.0,1.7134383]
[1734300886895,0.00014086,102850.0,102840.0,1.9414044]
[1734300887560,0.00014086,102850.0,102840.0,2.02784794]
[1734300887767,0.00014086,102850.0,102840.0,1.10627626]
[1734300888024,0.00014086,102850.0,102840.0,5.64621426]
[1734300888258,0.0001724,102880.0,102870.0,0.43365305]
[1734300888488,0.0001724,102880.0,102870.0,0.53878024]
[1734300888684,0.0001724,102880.0,102870.0,0.57318339]
[1734300888904,0.0001724,102880.0,102870.0,0.66241644]
[1734300890206,0.0001724,102880.0,102870.0,0.63680117]
[1734300890413,0.0001724,102880.0,102870.0,0.66241644]
[1734300891024,0.0001724,102880.0,102870.0,0.63680117]
[1734300891441,0.0001724,102880.0,102870.0,0.65980117]
[1734300891646,0.0001724,102880.0,102870.0,1.45720815]
[1734300891903,0.0001724,102880.0,102870.0,1.62601288]
[1734300892110,0.0001724,102880.0,102870.0,1.62676009]
[1734300892737,0.0001724,102880.0,102870.0,1.67676009]
[1734300892957,0.0001724,102880.0,102870.0,1.63350375]
[1734300893182,0.0001724,102880.0,102870.0,1.61265309]
[1734300893396,0.0001724,102880.0,102870.0,1.58157209]
[1734300893814,0.0001724,102880.0,102870.0,1.57278271]
[1734300894664,0.0001724,102880.0,102870.0,1.623916]
[1734300894876,0.0001724,102880.0,102870.0,1.60306534]
[1734300895303,0.0001724,102880.0,102870.0,1.623916]
[1734300895529,0.0001724,102880.0,102870.0,1.60306534]
[1734300895788,0.0001724,102880.0,102870.0,1.61784442]
[1734300896062,0.0001724,102880.0,102870.0,1.60306534]
[1734300896489,0.0001724,102880.0,102870.0,1.35829434]
[1734300896699,0.0001724,102880.0,102870.0,1.460745]
[1734300898840,0.0001724,102880.0,102870.0,1.45467342]
[1734300899063,0.0001724,102880.0,102870.0,1.46074446]
[1734300901298,0.0001724,102880.0,102870.0,1.51014433]
[1734300901526,0.0001724,102880.0,102870.0,1.56014433]
[1734300901949,0.0001724,102880.0,102870.0,0.87637133]
[1734300902159,0.0001724,102880.0,102870.0,5.41630933]
[1734300902578,0.0001724,102880.0,102870.0,5.43451957]
[1734300902783,1.126e-05,102880.0,102870.0,5.52096311]
[1734300903198,1.126e-05,102880.0,102870.0,5.52064842]
[1734300903641,1.126e-05,102880.0,102870.0,5.54744717]
[1734300904491,1.126e-05,102880.0,102870.0,5.46131832]
[1734300904698,1.126e-05,102880.0,102870.0,5.54744717]
[1734300904901,1.126e-05,102880.0,102870.0,5.46131832]
[1734300905105,0.00014366,102890.0,102880.0,0.50803904]
[1734300905311,0.00014366,102890.0,102880.0,5.43673603]
[1734300905312,6.6e-07,102890.0,102880.0,5.43673603]
[1734300905523,6.6e-07,102890.0,102880.0,0.91500827]
[1734300905727,6.6e-07,102890.0,102880.0,0.89679803]
[1734300906337,6.6e-07,102890.0,102880.0,0.84679803]
[1734300906338,0.00016485,102890.0,102880.0,0.84679803]
[1734300906541,0.00016485,102890.0,102880.0,0.74065899]
[1734300907075,0.0045645,102890.0,102880.0,3.60451099]
[1734300907288,0.00016485,102890.0,102880.0,3.33745799]
[1734300907493,0.00016485,102890.0,102880.0,3.24981508]
[1734300907691,0.00016485,102890.0,102880.0,3.17992258]
[1734300909135,0.00016485,102890.0,102880.0,3.1806698]
[1734300911057,0.0095768,102900.0,102890.0,0.2]
[1734300911282,0.01454252,102900.0,102890.0,1.79281895]
[1734300911489,0.01454252,102900.0,102890.0,1.79356609]
[1734300911693,0.01454252,102900.0,102890.0,1.81656609]
[1734300913161,0.01454252,102900.0,102890.0,0.74452009]
[1734300913378,0.01454252,102900.0,102890.0,0.72152009]
[1734300914615,0.13704252,102900.0,102890.0,0.30025304]
[1734300914818,0.13704252,102900.0,102890.0,0.20119901]
[1734300915673,0.13704252,102900.0,102890.0,0.29043206]
[1734300915889,0.13704252,102900.0,102890.0,0.44043206]
[1734300916103,0.33140552,102900.0,102890.0,0.00681701]
[1734300916516,0.13704252,102900.0,102890.0,0.00681701]
[1734300916728,0.13704252,102900.0,102890.0,0.00074714]
[1734300916934,0.13704252,102900.0,102890.0,0.20120047]
[1734300917177,0.13704252,102900.0,102890.0,0.29043352]
[1734300917384,0.13704252,102900.0,102890.0,0.44043352]
[1734300917594,0.13704252,102900.0,102890.0,0.440433]
[1734300918874,0.13704252,102900.0,102890.0,0.45980158]
[1734300919088,0.01012397,102900.0,102890.0,1.05494466]
[1734300919300,0.01012397,102900.0,102890.0,1.01571161]
[1734300920832,0.01012397,102900.0,102890.0,1.01571066]
[1734300921033,0.01012397,102900.0,102890.0,0.89043766]
[1734300921205,0.01012397,102900.0,102890.0,0.95841566]
[1734300922247,0.13912397,102900.0,102890.0,0.46962161]
[1734300922475,0.13912397,102900.0,102890.0,0.55885466]
[1734300923340,0.01012397,102900.0,102890.0,2.07033266]
[1734300923754,0.01012397,102900.0,102890.0,2.04406766]
[1734300923967,0.01012397,102900.0,102890.0,2.0379978]
[1734300924166,0.01012397,102900.0,102890.0,2.04406768]
[1734300925225,0.01012397,102900.0,102890.0,1.84893854]
[1734300925418,0.01012397,102900.0,102890.0,2.04332054]
[1734300928814,0.01012397,102900.0,102890.0,1.77786754]
[1734300929660,0.01012397,102900.0,102890.0,1.86412484]
[1734300930988,0.01012397,102900.0,102890.0,2.28966378]
[1734300931201,0.01012397,102900.0,102890.0,2.2880778]
[1734300932635,0.01012397,102900.0,102890.0,2.3743351]
[1734300933260,0.01012397,102900.0,102890.0,2.46081448]
[1734300933470,0.01012397,102900.0,102890.0,2.3243351]
[1734300933931,0.01012397,102900.0,102890.0,1.1775751]
[1734300934199,0.01012397,102900.0,102890.0,2.2476771]
[1734300935248,0.01012397,102900.0,102890.0,2.33393441]
[1734300935480,0.01012397,102900.0,102890.0,2.31093441]
[1734300935693,0.01012397,102900.0,102890.0,2.20119341]
[1734300936368,0.09212397,102900.0,102890.0,2.20119341]
[1734300936581,0.14012397,102900.0,102890.0,1.24148839]
[1734300936826,0.14012397,102900.0,102890.0,0.77457898]
[1734300937016,0.14012397,102900.0,102890.0,0.7685091]
[1734300937223,0.14012397,102900.0,102890.0,1.07176619]
[1734300937432,0.14012397,102900.0,102890.0,1.07204557]
[1734300938109,0.14012397,102900.0,102890.0,1.07221091]
[1734300940066,0.14012397,102900.0,102890.0,1.06614043]
[1734300940312,0.14012397,102900.0,102890.0,1.24472553]
[1734300940526,0.09212397,102900.0,102890.0,1.24472553]
[1734300940740,0.09212397,102900.0,102890.0,1.89432201]
[1734300942235,0.09212397,102900.0,102890.0,1.64285046]
[1734300942445,0.09212397,102900.0,102890.0,1.49135362]
[1734300942653,0.09212397,102900.0,102890.0,1.51060281]
[1734300943117,0.09212397,102900.0,102890.0,1.68311741]
[1734300944158,0.09212397,102900.0,102890.0,1.52579841]
[1734300944587,0.09212397,102900.0,102890.0,1.43913739]
[1734300945647,0.09212397,102900.0,102890.0,1.43306689]
[1734300945872,0.09212397,102900.0,102890.0,1.69773683]
[1734300946088,0.09212397,102900.0,102890.0,1.22480783]
[1734300946938,0.09212397,102900.0,102890.0,1.23087809]
[1734300947377,0.13812397,102900.0,102890.0,0.58637827]
[1734300947583,0.13812397,102900.0,102890.0,0.45660881]
[1734300949570,0.13812397,102900.0,102890.0,0.58637827]
[1734300949794,0.13812397,102900.0,102890.0,0.88540083]
[1734300950003,0.13812397,102900.0,102890.0,0.58637827]
[1734300950452,0.13812397,102900.0,102890.0,0.88543406]
[1734300952311,0.13812397,102900.0,102890.0,1.18908994]
[1734300953147,0.13812397,102900.0,102890.0,1.37737702]
[1734300953362,0.01012397,102900.0,102890.0,2.36106179]
[1734300953568,0.01012397,102900.0,102890.0,2.60545249]
[1734300953774,0.01012397,102900.0,102890.0,2.64886209]
[1734300954392,0.01012397,102900.0,102890.0,2.1875284]
[1734300954602,0.01012397,102900.0,102890.0,2.2626284]
[1734300954823,0.01012397,102900.0,102890.0,2.60314847]
[1734300955028,0.01012397,102900.0,102890.0,2.64654363]
[1734300955242,0.01012397,102900.0,102890.0,2.18752282]
[1734300955447,0.01012397,102900.0,102890.0,2.64668054]
[1734300956103,0.01012397,102900.0,102890.0,2.71968054]
[1734300956736,0.01012397,102900.0,102890.0,2.71669167]
[1734300960296,0.01012397,102900.0,102890.0,2.5000968]
[1734300961130,0.01012397,102900.0,102890.0,2.2835748]
[1734300961764,0.01012397,102900.0,102890.0,2.28464142]
[1734300962847,0.01012397,102900.0,102890.0,2.19724742]
[1734300963295,0.01012397,102900.0,102890.0,2.19856382]
[1734300963503,0.13482397,102900.0,102890.0,1.47773224]
[1734300963711,0.13482397,102900.0,102890.0,1.39887013]
[1734300963918,0.13482397,102900.0,102890.0,0.90827338]
[1734300964956,0.13482397,102900.0,102890.0,1.05827338]
[1734300965399,0.01012397,102900.0,102890.0,1.54851257]
[1734300965600,0.01012397,102900.0,102890.0,1.90042486]
[1734300965820,0.01012397,102900.0,102890.0,1.47969109]
[1734300966033,0.01012397,102900.0,102890.0,1.20643863]
[1734300966247,0.01012397,102900.0,102890.0,1.46697336]
[1734300969091,0.01012397,102900.0,102890.0,1.46090363]
[1734300969543,0.01012397,102900.0,102890.0,1.4669732]
[1734300969764,9.7e-07,102900.0,102890.0,1.75573409]
[1734300969965,0.0799,102930.0,102920.0,0.344325]
[1734300970175,0.0478862,102940.0,102920.0,3.25498763]
[1734300970378,0.00010632,102930.0,102920.0,1.31381511]
[1734300970579,0.00010632,102930.0,102920.0,1.10784409]
[1734300970787,0.00010632,102930.0,102920.0,3.46585509]
[1734300971059,0.00010632,102930.0,102920.0,3.63798814]
[1734300971264,0.00010632,102930.0,102920.0,4.10687902]
[1734300971467,0.00010632,102930.0,102920.0,3.44838194]
[1734300971680,0.00010632,102930.0,102920.0,4.27765684]
[1734300971681,3.2e-07,102930.0,102920.0,4.27765684]
[1734300971887,3.2e-07,102930.0,102920.0,2.05428684]
[1734300972105,3.2e-07,102930.0,102920.0,1.79386181]
[1734300972530,3.2e-07,102930.0,102920.0,1.63377322]
[1734300972764,0.0485862,102960.0,102950.0,0.43350205]
[1734300972970,0.04869248,102960.0,102950.0,2.18387864]
[1734300973188,0.12969248,102960.0,102950.0,2.18387864]
[1734300973624,0.08210628,102960.0,102950.0,2.18387864]
[1734300974155,0.07210628,102960.0,102950.0,2.18387864]
[1734300974570,0.07210628,102960.0,102950.0,2.09730765]
[1734300975874,6e-05,102970.0,102950.0,2.09730765]
[1734300976078,6e-05,102970.0,102960.0,2.43543513]
[1734300976279,6e-05,102970.0,102960.0,2.6357547]
[1734300976494,6e-05,102970.0,102960.0,2.6857547]
[1734300978629,6e-05,102970.0,102960.0,2.68575085]
[1734300979796,6e-05,102970.0,102960.0,2.63575085]
[1734300979996,0.07506,102970.0,102960.0,1.5401088]
[1734300981619,0.07506,102970.0,102960.0,1.54010938]
[1734300984044,0.07506,102970.0,102960.0,0.53860338]
[1734300984255,0.07506,102970.0,102960.0,1.63616938]
[1734300985905,0.12236,102970.0,102960.0,0.3503163]
[1734300986111,0.12236,102970.0,102960.0,0.43954935]
[1734300987518,0.12236,102970.0,102960.0,0.3503163]
[1734300987958,0.1224463,102970.0,102960.0,0.3503163]
[1734300989141,0.1224463,102970.0,102960.0,0.43954935]
[1734300991541,0.1224463,102970.0,102960.0,0.53860338]
[1734300994336,0.1224463,102970.0,102960.0,0.53860387]
[1734300997479,0.1224463,102970.0,102960.0,0.53253708]
[1734300997656,0.1224463,102970.0,102960.0,0.53860385]
[1734300998873,0.1224463,102970.0,102960.0,0.53877625]
[1734301000787,0.1224463,102970.0,102960.0,0.53877619]
[1734301001000,0.1224463,102970.0,102960.0,0.35048911]
[1734301001219,0.1224463,102970.0,102960.0,0.43972216]
[1734301002977,0.1224463,102970.0,102960.0,0.24547216]
[1734301003180,0.1224463,102970.0,102960.0,0.43972216]
[1734301004258,0.1224463,102970.0,102960.0,0.43365545]
[1734301004469,0.1224463,102970.0,102960.0,0.43972223]
[1734301006444,0.1224463,102970.0,102960.0,0.35048918]
[1734301011170,0.1224463,102970.0,102960.0,0.00623918]
[1734301011379,0.3166773,102970.0,102960.0,0.00623918]
[1734301012966,0.41573133,102970.0,102960.0,0.00623918]
[1734301013380,0.46573133,102970.0,102960.0,0.00623918]
[1734301014043,0.46573133,102970.0,102960.0,0.00624086]
[1734301016651,0.41573133,102970.0,102960.0,0.00624086]
[1734301016884,0.41573133,102970.0,102960.0,0.0001724]
[1734301017102,0.42620536,102970.0,102960.0,0.00624077]
[1734301018402,0.42620536,102970.0,102960.0,0.0001724]
[1734301021227,0.58843841,102970.0,102960.0,0.0001724]
[1734301021455,0.59080536,102970.0,102960.0,0.0001724]
[1734301024113,0.24425,102960.0,102950.0,0.00010628]
[1734301024346,0.58773708,102960.0,102950.0,0.00010628]
[1734301024770,0.76637517,102960.0,102950.0,0.00010628]
[1734301025402,0.67933708,102960.0,102950.0,0.00010628]
[1734301026056,0.76637517,102960.0,102950.0,0.00010628]
[1734301026261,0.67933708,102960.0,102950.0,0.00010628]
[1734301031036,0.77839111,102960.0,102950.0,0.00010628]
[1734301031459,0.67933708,102960.0,102950.0,0.00010628]
[1734301032143,0.64846368,102960.0,102950.0,0.00010628]
[1734301033454,0.64846368,102960.0,102950.0,0.00027868]
[1734301036640,0.42550403,102960.0,102950.0,0.00027868]
[1734301037078,0.47550403,102960.0,102950.0,0.00027868]
[1734301037295,0.47550403,102960.0,102950.0,0.00634752]
[1734301039002,0.23125403,102960.0,102950.0,0.00634752]
[1734301039206,0.28125403,102960.0,102950.0,0.00634752]
[1734301039413,0.23125403,102960.0,102950.0,0.00634752]
[1734301040257,0.09905403,102960.0,102950.0,0.20061652]
[1734301044612,0.09914023,102960.0,102950.0,0.20061652]
[1734301044867,0.09914023,102960.0,102950.0,0.19454768]
[1734301045049,0.09914023,102960.0,102950.0,0.20061581]
[1734301045260,0.09914023,102960.0,102950.0,0.22026399]
[1734301048147,0.09914023,102960.0,102950.0,0.22026383]
[1734301049406,0.09914023,102960.0,102950.0,0.00634665]
[1734301049605,0.41769023,102960.0,102950.0,0.00634665]
[1734301050403,0.52604988,102960.0,102950.0,0.00634665]
[1734301051444,0.46769023,102960.0,102950.0,0.00634665]
[1734301054420,0.46769023,102960.0,102950.0,0.00027868]
[1734301054548,0.46769023,102960.0,102950.0,0.00634734]
[1734301057812,0.46769023,102960.0,102950.0,0.00634731]
[1734301058850,0.46769023,102960.0,102950.0,0.50634731]
[1734301060343,0.42149023,102960.0,102950.0,0.50634731]
[1734301062888,0.14914023,102960.0,102950.0,0.50634731]
[1734301064186,0.34339023,102960.0,102950.0,0.50634731]
[1734301066440,0.34339023,102960.0,102950.0,0.34020333]
[1734301067634,0.29339023,102960.0,102950.0,0.34020333]
[1734301067866,0.34339023,102960.0,102950.0,0.34020333]
[1734301068494,0.34339023,102960.0,102950.0,0.34037573]
[1734301073468,0.34339023,102960.0,102950.0,1.09037573]
[1734301073750,0.29339023,102960.0,102950.0,1.09037573]
[1734301074305,0.34339023,102960.0,102950.0,1.09037573]
[1734301078408,0.34339023,102960.0,102950.0,1.09644401]
[1734301079806,0.34339023,102960.0,102950.0,1.09644399]
[1734301083415,0.29339023,102960.0,102950.0,1.09644399]
[1734301084455,0.34339023,102960.0,102950.0,1.09644399]
[1734301085082,0.29339023,102960.0,102950.0,1.09644399]
[1734301085286,0.34339023,102960.0,102950.0,1.09644399]
[1734301092218,1.06028923,102970.0,102950.0,1.22684399]
[1734301092420,0.05,102970.0,102950.0,1.22684399]
[1734301092629,0.21824818,102990.0,102980.0,0.223]
[1734301092833,8.61e-05,103000.0,102990.0,0.57167889]
[1734301093040,0.04538715,103070.0,103050.0,0.05]
[1734301093247,0.14444118,103070.0,103060.0,0.08647823]
[1734301093445,0.14444118,103070.0,103060.0,0.01414427]
[1734301093563,0.15476278,103070.0,103060.0,0.44362667]
[1734301093769,0.34880478,103070.0,103060.0,0.63391251]
[1734301093971,0.34880478,103070.0,103060.0,0.35098036]
[1734301094223,0.34880478,103070.0,103060.0,0.10917945]
[1734301094421,0.194061,103060.0,103050.0,0.17296257]
[1734301094621,0.29311503,103060.0,103050.0,0.17296257]
[1734301094955,0.19408,103050.0,103040.0,0.17296257]
[1734301095264,0.194099,103040.0,103030.0,0.17296257]
[1734301095454,0.56886503,103040.0,103020.0,0.17296257]
[1734301095735,0.29317203,103030.0,103020.0,0.17296257]
[1734301096669,0.48730603,103030.0,103020.0,0.17263126]
[1734301097055,0.48785314,103030.0,103020.0,0.17263126]
[1734301097905,0.29371914,103030.0,103020.0,0.17263126]
[1734301098370,0.469816,103040.0,103020.0,0.17263126]
[1734301098595,0.194118,103030.0,103020.0,0.17263126]